bitfinex/quotes_BTCUSD_20230118
["timestamp","ask_amount","ask_price","bid_price","bid_amount"]
[1674068585754,1.93926505,20905.0,20904.0,0.01381887]
[1674068586016,2.03026505,20905.0,20904.0,0.01381887]
[1674068586269,2.31971706,20905.0,20904.0,0.01381887]
[1674068586531,2.61971706,20905.0,20904.0,0.01381887]
[1674068587302,2.71071706,20905.0,20904.0,0.01381887]
[1674068587567,2.61971706,20905.0,20904.0,0.01381887]
[1674068587829,2.80311707,20905.0,20904.0,0.01381887]
[1674068588101,2.42266506,20905.0,20904.0,0.01381887]
[1674068588589,2.33166506,20905.0,20904.0,0.01381887]
[1674068588855,2.42266506,20905.0,20904.0,0.01381887]
[1674068589408,2.83223873,20905.0,20904.0,0.01381887]
[1674068589653,2.75500522,20905.0,20904.0,0.00323854]
[1674068589924,3.47868048,20905.0,20904.0,0.00323854]
[1674068590193,3.38768048,20905.0,20904.0,0.00323854]
[1674068590470,2.99629511,20905.0,20904.0,0.00323854]
[1674068590725,2.90529511,20905.0,20904.0,0.00323854]
[1674068590989,2.99629511,20905.0,20904.0,0.00323854]
[1674068591243,2.14209342,20905.0,20904.0,0.00323854]
[1674068592826,2.44209342,20905.0,20904.0,0.00323854]
[1674068593364,2.14209342,20905.0,20904.0,0.00323854]
[1674068593619,2.04969341,20905.0,20904.0,0.00323854]
[1674068593891,1.362174,20905.0,20904.0,0.00323854]
[1674068594150,1.047708,20905.0,20904.0,0.00323854]
[1674068594406,0.091,20905.0,20904.0,0.00323854]
[1674068594668,6e-05,20906.0,20904.0,0.31981154]
[1674068594955,6e-05,20906.0,20905.0,0.46878197]
[1674068595213,6e-05,20906.0,20905.0,0.35720391]
[1674068595474,6e-05,20906.0,20905.0,0.83555791]
[1674068595764,6e-05,20906.0,20905.0,1.32483597]
[1674068596064,0.00806,20906.0,20905.0,1.225715]
[1674068596329,0.16773,20909.0,20905.0,2.44438669]
[1674068596589,0.16773,20909.0,20908.0,0.0777]
[1674068596851,0.19121012,20910.0,20908.0,1.608977]
[1674068597133,0.01114012,20910.0,20909.0,0.393122]
[1674068597642,0.01114012,20910.0,20909.0,0.701622]
[1674068597903,4.012e-05,20910.0,20909.0,1.56795369]
[1674068598180,0.00204012,20910.0,20909.0,1.57807407]
[1674068598474,4.012e-05,20910.0,20909.0,1.65072549]
[1674068598731,0.00204012,20910.0,20909.0,1.65547739]
[1674068599861,4.012e-05,20910.0,20909.0,1.65047739]
[1674068600150,0.00704012,20910.0,20909.0,1.65047739]
[1674068600407,0.01404012,20910.0,20909.0,1.66165369]
[1674068600661,4.012e-05,20910.0,20909.0,1.64565369]
[1674068600890,4.012e-05,20910.0,20909.0,2.16395369]
[1674068601213,1.2e-07,20910.0,20909.0,2.46025369]
[1674068601471,1.2e-07,20910.0,20909.0,2.46516603]
[1674068601728,1.2e-07,20910.0,20909.0,3.89995203]
[1674068602242,1.2e-07,20910.0,20909.0,3.94986274]
[1674068602504,4.991e-05,20912.0,20909.0,4.35473253]
[1674068602773,4.991e-05,20912.0,20911.0,1.553]
[1674068603017,0.00692797,20919.0,20911.0,4.08479969]
[1674068603273,0.08416148,20919.0,20918.0,0.0774]
[1674068603523,0.00692797,20919.0,20918.0,1.53816697]
[1674068603791,0.00692797,20919.0,20918.0,1.54666697]
[1674068604058,0.00692797,20919.0,20918.0,0.865789]
[1674068604298,0.00692797,20919.0,20918.0,0.788389]
[1674068604556,0.00692797,20919.0,20918.0,0.824389]
[1674068604807,0.00692797,20919.0,20918.0,0.346332]
[1674068605099,0.00692797,20919.0,20918.0,0.341332]
[1674068605333,0.00692797,20919.0,20918.0,0.305332]
[1674068606369,0.00792797,20919.0,20918.0,0.306332]
[1674068608268,0.00792797,20919.0,20918.0,0.001]
[1674068608269,0.56319548,20919.0,20918.0,0.001]
[1674068608573,0.79795197,20919.0,20918.0,0.001]
[1674068608827,1.27598597,20919.0,20918.0,0.001]
[1674068609097,2.05214846,20919.0,20914.0,0.00500539]
[1674068609362,0.82019703,20918.0,20913.0,0.17563301]
[1674068609629,0.89471203,20917.0,20913.0,0.17563301]
[1674068610161,1.37279203,20917.0,20913.0,0.00500301]
[1674068610425,1.37279203,20917.0,20913.0,0.01000301]
[1674068610426,0.33938752,20916.0,20913.0,0.01000301]
[1674068610686,0.95625,20915.0,20913.0,0.00500301]
[1674068610938,0.478125,20915.0,20910.0,0.795829]
[1674068611194,0.41662103,20915.0,20913.0,0.005]
[1674068611517,0.33938752,20916.0,20914.0,0.326214]
[1674068611702,0.33938752,20916.0,20915.0,0.29607]
[1674068611977,0.29128936,20917.0,20913.0,0.005]
[1674068612216,1.10875788,20917.0,20913.0,0.005]
[1674068612480,1.58683788,20917.0,20913.0,0.005]
[1674068612992,1.58683788,20917.0,20913.0,0.19932097]
[1674068613242,1.55683788,20917.0,20911.0,0.56084942]
[1674068613503,0.41662103,20916.0,20911.0,0.75517039]
[1674068613756,0.22723351,20915.0,20913.0,0.005]
[1674068614012,0.07723351,20915.0,20913.0,0.005]
[1674068614279,0.478131,20915.0,20911.0,0.00495442]
[1674068614531,0.89475203,20915.0,20913.0,0.005]
[1674068614785,1.44997703,20915.0,20913.0,0.005]
[1674068615043,0.400494,20914.0,20910.0,6e-05]
[1674068615348,1.69291103,20913.0,20910.0,6e-05]
[1674068615562,0.67179352,20912.0,20910.0,6e-05]
[1674068615866,0.81759452,20912.0,20910.0,6e-05]
[1674068616096,1.29578852,20912.0,20910.0,6e-05]
[1674068616370,0.956401,20912.0,20910.0,6e-05]
[1674068616656,0.956401,20912.0,20910.0,0.00506]
[1674068616875,0.478194,20912.0,20910.0,6e-05]
[1674068617133,0.03,20912.0,20910.0,0.00506]
[1674068617384,1.22339689,20913.0,20910.0,6e-05]
[1674068617634,0.03,20912.0,20910.0,0.00506]
[1674068617882,0.478217,20911.0,20910.0,0.00506]
[1674068618134,0.956399,20912.0,20910.0,6e-05]
[1674068618392,0.478197,20912.0,20910.0,6e-05]
[1674068618645,0.60640541,20913.0,20910.0,6e-05]
[1674068618911,0.478194,20912.0,20910.0,6e-05]
[1674068619163,0.15,20911.0,20910.0,6e-05]
[1674068619406,0.24656718,20911.0,20910.0,0.00506]
[1674068619663,0.72478418,20911.0,20910.0,6e-05]
[1674068619912,1.20300118,20911.0,20910.0,0.00506]
[1674068620163,0.72478418,20911.0,20910.0,6e-05]
[1674068620406,0.27656718,20911.0,20910.0,0.00506]
[1674068621159,0.03,20911.0,20910.0,0.00506]
[1674068622155,0.03,20911.0,20910.0,0.68254304]
[1674068622405,0.03,20911.0,20910.0,1.46032307]
[1674068622659,0.03,20911.0,20910.0,1.76032307]
[1674068623393,0.03,20911.0,20910.0,2.75968862]
[1674068623633,0.03,20911.0,20910.0,2.79616117]
[1674068623893,0.03,20911.0,20910.0,2.7912391]
[1674068624135,0.33938752,20914.0,20910.0,1.50030578]
[1674068624383,1.93476671,20915.0,20911.0,0.183429]
[1674068624633,1.51814568,20915.0,20912.0,0.804095]
[1674068624847,1.51814568,20915.0,20913.0,0.109935]
[1674068625104,1.3039,20915.0,20913.0,0.478159]
[1674068625343,1.3039,20915.0,20914.0,0.304178]
[1674068626597,1.3229,20915.0,20914.0,0.305178]
[1674068627365,1.3229,20915.0,20914.0,1.269974]
[1674068627618,1.32282953,20915.0,20914.0,1.338774]
[1674068629308,1.30382953,20915.0,20914.0,1.337774]
[1674068630049,1.30382953,20915.0,20914.0,1.260474]
[1674068630260,1.32082953,20915.0,20914.0,1.261474]
[1674068631433,1.32082953,20915.0,20914.0,0.783326]
[1674068632436,1.32082953,20915.0,20914.0,0.305178]
[1674068632697,1.32082953,20915.0,20914.0,0.783326]
[1674068632949,1.32082953,20915.0,20914.0,0.305178]
[1674068633208,1.32082953,20915.0,20914.0,0.001]
[1674068633209,1.79895453,20915.0,20914.0,0.001]
[1674068633974,2.12129053,20915.0,20914.0,0.001]
[1674068634223,2.59941553,20915.0,20914.0,0.001]
[1674068634989,2.82121768,20915.0,20914.0,0.001]
[1674068635246,3.85512653,20915.0,20914.0,0.001]
[1674068636515,4.13812653,20915.0,20909.0,0.00487572]
[1674068636827,1.66136636,20914.0,20907.0,0.478305]
[1674068637017,0.956392,20912.0,20907.0,0.478305]
[1674068637280,0.07723351,20911.0,20906.0,0.48344112]
[1674068637537,0.07723351,20911.0,20906.0,0.00511612]
[1674068637538,1.03373551,20910.0,20906.0,0.00511612]
[1674068637784,0.07723351,20909.0,20906.0,0.00511612]
[1674068638076,0.55550151,20909.0,20904.0,0.95997554]
[1674068638291,0.07723351,20908.0,20906.0,0.049]
[1674068638569,0.62829,20908.0,20906.0,0.049]
[1674068638805,0.55550951,20909.0,20906.0,0.049]
[1674068639065,0.478276,20909.0,20906.0,0.049]
[1674068639338,0.555559,20910.0,20906.0,0.05405545]
[1674068639597,0.956518,20910.0,20906.0,0.24837642]
[1674068639857,0.23644294,20909.0,20906.0,0.19937642]
[1674068640116,0.27944294,20909.0,20906.0,0.00905545]
[1674068640377,0.23244294,20909.0,20906.0,0.48338545]
[1674068640633,0.009,20910.0,20907.0,0.333234]
[1674068640887,0.478235,20911.0,20908.0,0.102727]
[1674068641163,0.478235,20911.0,20909.0,0.327568]
[1674068641417,0.75032066,20911.0,20906.0,1.22132645]
[1674068641684,1.30575617,20911.0,20906.0,0.28097642]
[1674068641978,1.30575617,20911.0,20906.0,0.08665545]
[1674068642236,1.30575617,20911.0,20906.0,0.27697642]
[1674068642501,0.043,20910.0,20907.0,0.792001]
[1674068642746,0.75030366,20911.0,20908.0,0.126265]
[1674068642996,0.75430366,20911.0,20908.0,0.19432097]
[1674068643304,0.75030266,20911.0,20908.0,0.19432097]
[1674068643559,1.23751966,20911.0,20906.0,0.56096945]
[1674068643797,0.07723351,20910.0,20907.0,0.478296]
[1674068644042,0.28108566,20911.0,20908.0,0.319204]
[1674068644043,0.80231366,20911.0,20908.0,0.319204]
[1674068644289,0.80231366,20911.0,20908.0,0.004]
[1674068645045,0.27208566,20911.0,20907.0,0.4783]
[1674068645260,0.009,20910.0,20907.0,0.001]
[1674068645502,0.82754117,20911.0,20906.0,0.48337045]
[1674068645760,0.87054117,20911.0,20908.0,0.004]
[1674068646022,0.75030766,20911.0,20906.0,0.67769142]
[1674068646287,0.83654117,20911.0,20907.0,0.001]
[1674068646547,0.27208566,20911.0,20908.0,0.31686412]
[1674068646793,0.004,20911.0,20909.0,0.123902]
[1674068647040,0.004,20911.0,20910.0,0.312002]
[1674068647808,0.004,20911.0,20908.0,0.96138012]
[1674068648052,0.004,20911.0,20908.0,0.48311112]
[1674068648313,0.20577062,20912.0,20909.0,0.317352]
[1674068648592,0.20577062,20912.0,20908.0,0.48311112]
[1674068648850,0.043,20911.0,20908.0,0.48711112]
[1674068649114,0.12023351,20911.0,20908.0,0.00883112]
[1674068649384,0.15,20910.0,20908.0,0.004]
[1674068649683,0.20577062,20912.0,20906.0,0.48327627]
[1674068649889,0.07723351,20911.0,20908.0,0.004]
[1674068650160,0.68398662,20912.0,20908.0,0.00482229]
[1674068650399,1.16219962,20912.0,20908.0,0.19914326]
[1674068650647,1.16219962,20912.0,20908.0,0.19424483]
[1674068650897,0.25174955,20910.0,20905.0,0.63323599]
[1674068651149,0.07730965,20909.0,20905.0,0.15488699]
[1674068651390,0.07730965,20909.0,20906.0,0.803429]
[1674068651638,0.25174955,20910.0,20907.0,0.11088]
[1674068651895,0.25174955,20910.0,20908.0,0.325071]
[1674068652150,0.25174955,20910.0,20907.0,0.478307]
[1674068652151,0.25174955,20910.0,20909.0,0.110866]
[1674068652394,0.25174955,20910.0,20908.0,0.004]
[1674068652638,0.25174955,20910.0,20907.0,0.478307]
[1674068652875,0.29474955,20910.0,20908.0,0.004]
[1674068654449,0.043,20910.0,20908.0,0.004]
[1674068654713,0.043,20910.0,20909.0,0.319143]
[1674068655190,0.52124,20910.0,20909.0,0.330811]
[1674068655438,0.043,20910.0,20909.0,0.330811]
[1674068655694,0.478229,20911.0,20909.0,0.330811]
[1674068655945,0.478239,20911.0,20910.0,0.105103]
[1674068656172,0.478214,20912.0,20909.0,0.004]
[1674068656432,0.478214,20912.0,20910.0,0.323885]
[1674068656678,0.25852993,20913.0,20911.0,0.112005]
[1674068656927,0.73671293,20913.0,20909.0,0.482261]
[1674068657184,0.73671293,20913.0,20909.0,0.19832097]
[1674068657185,0.25852993,20913.0,20909.0,0.19832097]
[1674068657433,1.78197053,20915.0,20910.0,1.35294]
[1674068657674,1.78197053,20915.0,20911.0,0.31063497]
[1674068657914,1.78197053,20915.0,20912.0,0.316847]
[1674068658163,1.78197053,20915.0,20912.0,0.19432097]
[1674068658423,1.30382953,20915.0,20912.0,0.67250597]
[1674068658674,1.30382953,20915.0,20913.0,0.317801]
[1674068658943,1.30382953,20915.0,20912.0,0.478185]
[1674068659221,1.31482953,20915.0,20912.0,0.479185]
[1674068659477,1.31482953,20915.0,20913.0,0.19432097]
[1674068659735,1.30382953,20915.0,20914.0,1.28347]
[1674068660256,1.30382953,20915.0,20914.0,1.28837665]
[1674068660495,1.30382953,20915.0,20914.0,1.67457665]
[1674068660745,1.34182953,20915.0,20914.0,1.67457665]
[1674068660993,1.30382953,20915.0,20914.0,1.52457665]
[1674068661247,1.34182953,20915.0,20914.0,1.30187665]
[1674068661507,1.30382953,20915.0,20914.0,1.29687665]
[1674068661762,1.30682953,20915.0,20914.0,1.35087665]
[1674068662037,1.30382953,20915.0,20914.0,1.29687665]
[1674068662359,1.30682953,20915.0,20914.0,1.35087665]
[1674068662543,1.30382953,20915.0,20914.0,1.29687665]
[1674068662791,1.30682953,20915.0,20914.0,1.50087665]
[1674068663796,1.30382953,20915.0,20914.0,1.44687665]
[1674068664045,1.30682953,20915.0,20914.0,1.50087665]
[1674068664294,1.30382953,20915.0,20914.0,1.52427665]
[1674068664555,1.30682953,20915.0,20914.0,1.57827665]
[1674068664798,1.30682953,20915.0,20914.0,1.52427665]
[1674068665048,1.30982953,20915.0,20914.0,1.87827665]
[1674068665297,1.30382953,20915.0,20914.0,1.82427665]
[1674068665560,1.30682953,20915.0,20914.0,1.87827665]
[1674068665814,1.30682953,20915.0,20914.0,1.82427665]
[1674068666814,1.30982953,20915.0,20914.0,2.30547834]
[1674068667070,1.30982953,20915.0,20914.0,3.18057834]
[1674068667317,1.30982953,20915.0,20914.0,3.18097834]
[1674068668083,1.30982953,20915.0,20914.0,2.08307834]
[1674068669601,1.30982953,20915.0,20914.0,2.38307834]
[1674068670108,1.30982953,20915.0,20914.0,1.74737665]
[1674068670364,1.30982953,20915.0,20914.0,1.44737665]
[1674068670613,1.30982953,20915.0,20914.0,1.36997665]
[1674068670865,1.30982953,20915.0,20914.0,1.29237665]
[1674068671369,1.30982953,20915.0,20914.0,1.60087665]
[1674068672615,1.30982953,20915.0,20914.0,1.30087665]
[1674068674847,1.30982953,20915.0,20914.0,1.28747]
[1674068675106,1.64774392,20915.0,20914.0,0.331174]
[1674068675357,1.30982953,20915.0,20914.0,0.054]
[1674068675625,1.61711123,20915.0,20914.0,0.054]
[1674068675879,1.30982953,20915.0,20914.0,0.054]
[1674068676368,1.61744691,20915.0,20914.0,0.054]
[1674068676658,1.76144691,20915.0,20911.0,0.4782]
[1674068676880,2.26407953,20915.0,20914.0,0.049]
[1674068677139,2.96601438,20915.0,20910.0,0.478219]
[1674068677423,2.90265649,20915.0,20914.0,0.004]
[1674068677628,3.93283603,20915.0,20908.0,0.47828]
[1674068677877,0.0771,20912.0,20911.0,0.049]
[1674068678141,1.43621465,20912.0,20911.0,0.049]
[1674068678394,1.96701958,20912.0,20911.0,0.049]
[1674068678643,2.04401958,20912.0,20911.0,0.049]
[1674068678894,2.04401958,20912.0,20907.0,0.19432097]
[1674068679168,2.04401958,20912.0,20905.0,0.01379394]
[1674068679169,0.0771,20909.0,20905.0,0.01379394]
[1674068679415,0.38519934,20908.0,20905.0,0.49214294]
[1674068679675,0.38502771,20908.0,20905.0,0.49214294]
[1674068679935,0.38505697,20908.0,20905.0,0.49214294]
[1674068680178,0.38484726,20909.0,20906.0,0.00482194]
[1674068680440,0.0771,20909.0,20906.0,0.00482194]
[1674068680923,1.03365,20909.0,20906.0,0.00482194]
[1674068681169,0.7175368,20910.0,20906.0,0.00482194]
[1674068681419,0.54702641,20910.0,20906.0,0.19914291]
[1674068681686,0.004,20908.0,20907.0,0.0085]
[1674068681932,0.004,20908.0,20907.0,0.965087]
[1674068682189,0.004,20908.0,20907.0,0.333156]
[1674068682430,0.07723,20908.0,20907.0,0.802964]
[1674068682688,0.07323,20908.0,20907.0,0.802964]
[1674068682937,0.046,20908.0,20907.0,0.004]
[1674068683190,1.02520324,20910.0,20905.0,0.49212894]
[1674068683434,0.046,20908.0,20907.0,0.004]
[1674068683738,0.046,20908.0,20907.0,0.482302]
[1674068684184,0.046,20908.0,20907.0,0.004]
[1674068684404,0.54694124,20910.0,20906.0,0.965132]
[1674068684657,0.046,20908.0,20907.0,0.004]
[1674068684911,0.5457876,20910.0,20907.0,0.327985]
[1674068685153,0.2392958,20910.0,20908.0,0.057959]
[1674068685401,0.2392958,20910.0,20906.0,0.97012157]
[1674068685661,0.2392958,20910.0,20907.0,0.334054]
[1674068685909,0.2392958,20910.0,20908.0,0.051889]
[1674068686157,0.2392958,20910.0,20906.0,0.97011557]
[1674068686412,0.31660545,20910.0,20906.0,0.97011557]
[1674068686658,1.27708745,20910.0,20907.0,0.331394]
[1674068686908,1.1997778,20910.0,20906.0,0.05849257]
[1674068687161,1.5832806,20910.0,20906.0,0.04999257]
[1674068687414,1.5832806,20910.0,20907.0,0.478304]
[1674068687415,0.6227986,20910.0,20907.0,0.478304]
[1674068687657,0.7635478,20910.0,20908.0,0.004]
[1674068687906,0.2392958,20910.0,20906.0,0.48331157]
[1674068688147,0.62711275,20910.0,20906.0,0.48331157]
[1674068688394,1.10535275,20910.0,20906.0,0.00499257]
[1674068688659,0.67311275,20910.0,20907.0,0.004]
[1674068688926,0.2852958,20910.0,20906.0,0.96164457]
[1674068689171,0.54989065,20910.0,20907.0,0.478307]
[1674068689420,0.2392958,20910.0,20906.0,0.48332357]
[1674068689668,1.10144644,20910.0,20906.0,0.48332357]
[1674068689913,0.54589079,20910.0,20906.0,0.48332357]
[1674068690423,0.55274996,20910.0,20906.0,0.48432357]
[1674068690670,0.54574996,20910.0,20906.0,0.48332357]
[1674068690924,0.54574996,20910.0,20906.0,0.52832357]
[1674068690925,1.02799196,20910.0,20906.0,0.52832357]
[1674068691180,1.02399196,20910.0,20906.0,0.48332357]
[1674068691431,1.50923196,20910.0,20906.0,0.00599257]
[1674068691684,0.15,20909.0,20906.0,0.00499257]
[1674068691951,0.15,20909.0,20906.0,0.045]
[1674068692234,0.45666278,20909.0,20905.0,0.478334]
[1674068692558,0.53397243,20909.0,20905.0,0.478334]
[1674068692738,0.53397243,20909.0,20905.0,0.956688]
[1674068692992,0.38397069,20908.0,20905.0,0.478334]
[1674068693241,0.38397069,20908.0,20904.0,0.48660787]
[1674068693242,0.46128034,20908.0,20904.0,0.48660787]
[1674068693484,0.30654974,20907.0,20906.0,0.001]
[1674068693793,0.15,20907.0,20904.0,0.48660787]
[1674068694005,0.53379022,20907.0,20905.0,0.045]
[1674068694253,0.45648057,20907.0,20904.0,0.48660787]
[1674068694513,0.45648057,20907.0,20904.0,0.00323854]
[1674068694514,0.38349327,20906.0,20904.0,0.00323854]
[1674068694761,0.628354,20905.0,20904.0,0.00323854]
[1674068695785,0.478354,20905.0,20904.0,0.00323854]
[1674068696035,0.478352,20906.0,20904.0,0.00323854]
[1674068696292,0.560008,20907.0,20904.0,0.00323854]
[1674068696528,1.11972716,20908.0,20904.0,0.19755951]
[1674068696780,0.004,20905.0,20904.0,0.24255951]
[1674068697025,1.42603801,20908.0,20904.0,0.00323854]
[1674068697278,0.004,20906.0,20905.0,0.31825]
[1674068697563,0.004,20906.0,20905.0,0.325033]
[1674068697796,0.004,20906.0,20904.0,0.04823854]
[1674068698294,0.004,20906.0,20905.0,0.330288]
[1674068698559,0.07323,20906.0,20904.0,0.00323854]
[1674068698845,0.004,20906.0,20905.0,0.045]
[1674068699057,0.07723,20906.0,20905.0,0.045]
[1674068699823,0.07323,20906.0,20904.0,0.00323854]
[1674068700350,0.07323,20906.0,20905.0,0.045]
[1674068700606,0.27420479,20906.0,20905.0,0.045]
[1674068700867,1.05484205,20906.0,20904.0,0.00323854]
[1674068701116,1.53717305,20906.0,20904.0,0.04823854]
[1674068701363,1.53317305,20906.0,20904.0,0.00323854]
[1674068701615,1.53717305,20906.0,20905.0,0.045]
[1674068701879,1.61477305,20906.0,20905.0,0.045]
[1674068702128,1.95218805,20906.0,20905.0,0.045]
[1674068703397,1.94818805,20906.0,20904.0,0.00323854]
[1674068703665,0.541549,20905.0,20904.0,0.04823854]
[1674068703926,1.184308,20905.0,20904.0,0.00323854]
[1674068704455,1.034308,20905.0,20904.0,0.00323854]
[1674068704687,0.555954,20905.0,20904.0,0.00323854]
[1674068704943,0.605954,20905.0,20904.0,0.00723854]
[1674068705963,1.354011,20905.0,20904.0,0.00323854]
[1674068706221,1.40170343,20905.0,20904.0,0.00723854]
[1674068706565,1.73547916,20905.0,20904.0,0.00323854]
[1674068706753,2.46708768,20905.0,20904.0,0.00723854]
[1674068707040,2.41708768,20905.0,20904.0,0.00323854]
[1674068707296,2.61500339,20905.0,20904.0,0.00723854]
[1674068707542,2.62269907,20905.0,20904.0,0.00723854]
[1674068707840,2.41356951,20905.0,20904.0,0.00723854]
[1674068708083,2.8961717,20905.0,20904.0,0.00723854]
[1674068708330,0.2953,20904.0,20902.0,0.01429698]
[1674068708584,2.5068853,20903.0,20902.0,0.01429698]
[1674068708843,2.5068853,20903.0,20902.0,9.698e-05]
[1674068709110,2.41067606,20903.0,20902.0,9.698e-05]
[1674068709364,2.71067606,20903.0,20902.0,9.698e-05]
[1674068709611,2.41067606,20903.0,20902.0,9.698e-05]
[1674068709855,2.50567606,20903.0,20902.0,9.698e-05]
[1674068710863,2.6018853,20903.0,20902.0,9.698e-05]
[1674068711119,2.51158053,20903.0,20902.0,9.698e-05]
[1674068711381,2.43428053,20903.0,20902.0,9.698e-05]
[1674068711650,2.12742223,20903.0,20902.0,9.698e-05]
[1674068713930,2.12960923,20903.0,20902.0,9.698e-05]
[1674068714172,2.08074323,20903.0,20902.0,9.698e-05]
[1674068714425,2.06711623,20903.0,20902.0,9.698e-05]
[1674068714938,1.11031623,20903.0,20902.0,9.698e-05]
[1674068715211,1.57938223,20903.0,20902.0,9.698e-05]
[1674068715483,1.26149523,20903.0,20902.0,9.698e-05]
[1674068715690,1.58387023,20903.0,20902.0,9.698e-05]
[1674068716196,1.26149523,20903.0,20902.0,9.698e-05]
[1674068716446,1.10803023,20903.0,20902.0,9.698e-05]
[1674068716954,2.27323709,20903.0,20902.0,9.698e-05]
[1674068717240,2.65043709,20903.0,20902.0,9.698e-05]
[1674068718234,2.55507772,20903.0,20902.0,9.698e-05]
[1674068718504,2.55507772,20903.0,20900.0,1.383e-05]
[1674068718505,0.25333358,20902.0,20900.0,1.383e-05]
[1674068718737,1.50282755,20901.0,20899.0,2.081e-05]
[1674068718998,1.85407268,20900.0,20899.0,2.081e-05]
[1674068719297,2.15449771,20900.0,20899.0,2.081e-05]
[1674068719502,2.55749771,20900.0,20899.0,2.081e-05]
[1674068719751,0.15,20899.0,20897.0,0.01358919]
[1674068719998,2.24539125,20898.0,20897.0,0.01358919]
[1674068721048,2.93259125,20898.0,20897.0,0.01358919]
[1674068721296,3.1525911,20898.0,20897.0,0.01358919]
[1674068721840,3.0605911,20898.0,20897.0,0.01358919]
[1674068722051,3.1525911,20898.0,20897.0,0.01358919]
[1674068722338,3.63519329,20898.0,20897.0,0.01358919]
[1674068723332,3.54319329,20898.0,20897.0,0.01358919]
[1674068723586,3.63519329,20898.0,20897.0,0.01358919]
[1674068723827,3.89239513,20898.0,20897.0,0.01358919]
[1674068724073,0.15,20897.0,20892.0,0.0097706]
[1674068724325,3.45325768,20897.0,20892.0,0.0097706]
[1674068724582,0.1547,20894.0,20892.0,0.0097706]
[1674068724833,3.00096169,20894.0,20892.0,0.0097706]
[1674068725122,3.00082498,20894.0,20892.0,0.0097706]
[1674068725371,4.19523934,20894.0,20893.0,7.4e-07]
[1674068725683,4.19523934,20894.0,20892.0,0.0097706]
[1674068725684,4.20383934,20894.0,20892.0,0.0097706]
[1674068725883,1.70803439,20893.0,20892.0,0.0097706]
[1674068726157,2.3379907,20893.0,20892.0,0.0097706]
[1674068726416,2.0430907,20893.0,20892.0,0.0097706]
[1674068726664,2.26902333,20893.0,20892.0,0.0097706]
[1674068727160,2.0430907,20893.0,20892.0,0.0097706]
[1674068727419,2.24298674,20893.0,20892.0,0.0097706]
[1674068727659,2.33498674,20893.0,20892.0,0.0097706]
[1674068727906,2.16100005,20893.0,20892.0,0.0097706]
[1674068728686,2.48003484,20893.0,20892.0,0.0097706]
[1674068728945,2.65823489,20893.0,20892.0,0.0097706]
[1674068729196,1.86100005,20893.0,20892.0,0.0097706]
[1674068730211,2.16100005,20893.0,20892.0,0.0097706]
[1674068730467,2.1799418,20893.0,20892.0,0.0097706]
[1674068730733,2.4799418,20893.0,20892.0,0.0097706]
[1674068731231,2.77545621,20893.0,20892.0,0.0097706]
[1674068732237,2.68345621,20893.0,20892.0,0.0097706]
[1674068732500,2.01035652,20893.0,20892.0,0.0097706]
[1674068732739,2.02515652,20893.0,20892.0,0.0097706]
[1674068733305,1.70610005,20893.0,20892.0,0.0097706]
[1674068733791,1.30265405,20893.0,20892.0,0.0097706]
[1674068734030,1.39465405,20893.0,20892.0,0.0097706]
[1674068734569,1.39455039,20893.0,20892.0,0.0097706]
[1674068735109,0.71602535,20893.0,20892.0,0.01468412]
[1674068735366,0.71602535,20893.0,20892.0,0.32722712]
[1674068735622,0.62412901,20893.0,20892.0,0.40840712]
[1674068735880,0.14550001,20893.0,20892.0,0.40462712]
[1674068736163,0.14550001,20893.0,20892.0,0.40562712]
[1674068736423,0.20950001,20893.0,20892.0,0.40562712]
[1674068736931,0.20950001,20893.0,20892.0,0.40462712]
[1674068736932,0.14550001,20893.0,20892.0,0.40462712]
[1674068737409,0.14550001,20893.0,20892.0,0.89027912]
[1674068737411,0.14850001,20893.0,20892.0,0.96727912]
[1674068739733,0.14850001,20893.0,20892.0,1.4410176]
[1674068739990,0.14850001,20893.0,20892.0,1.93533857]
[1674068740249,0.14850001,20893.0,20892.0,2.6373176]
[1674068741033,0.14850001,20893.0,20892.0,2.34717958]
[1674068741296,0.14850001,20893.0,20892.0,2.34706422]
[1674068743123,0.14850001,20893.0,20892.0,2.34206422]
[1674068744217,0.14850001,20893.0,20892.0,2.04206422]
[1674068744469,0.14850001,20893.0,20892.0,2.34206422]
[1674068744728,0.14850001,20893.0,20892.0,2.04206422]
[1674068745153,0.14850001,20893.0,20892.0,1.44206422]
[1674068746576,0.14850001,20893.0,20892.0,1.59206422]
[1674068746793,0.14850001,20893.0,20892.0,2.19206422]
[1674068747679,0.14850001,20893.0,20892.0,1.44206422]
[1674068748349,0.14850001,20893.0,20892.0,1.74206422]
[1674068748574,0.14850001,20893.0,20892.0,1.44206422]
[1674068749009,0.14850001,20893.0,20892.0,1.59206422]
[1674068749685,0.14850001,20893.0,20892.0,1.49048739]
[1674068751042,0.14850001,20893.0,20892.0,1.41208739]
[1674068751798,0.14850001,20893.0,20892.0,1.48938739]
[1674068753401,0.14850001,20893.0,20892.0,1.03508739]
[1674068754432,0.14850001,20893.0,20892.0,0.55643539]
[1674068754705,0.14850001,20893.0,20892.0,0.007]
[1674068754706,0.40869663,20893.0,20892.0,0.007]
[1674068757837,0.14850001,20893.0,20892.0,0.007]
[1674068758045,0.14850001,20893.0,20892.0,0.566832]
[1674068758303,0.14850001,20893.0,20892.0,0.485652]
[1674068758554,0.14850001,20893.0,20892.0,0.625099]
[1674068758809,0.14850001,20893.0,20892.0,0.63013606]
[1674068760339,0.14850001,20893.0,20892.0,0.15148406]
[1674068760584,0.14850001,20893.0,20892.0,0.01203706]
[1674068760844,0.14850001,20893.0,20892.0,0.007]
[1674068761360,0.47880601,20893.0,20892.0,0.007]
[1674068761628,0.14850001,20893.0,20892.0,0.007]
[1674068762155,0.62712901,20893.0,20892.0,0.007]
[1674068762426,1.10575801,20893.0,20892.0,0.007]
[1674068762679,1.41533601,20893.0,20892.0,0.007]
[1674068762929,0.77920167,20893.0,20892.0,0.007]
[1674068763189,0.45807801,20893.0,20892.0,0.007]
[1674068763452,0.93670701,20893.0,20892.0,0.007]
[1674068763715,1.41533601,20893.0,20892.0,0.007]
[1674068763982,0.46954501,20893.0,20892.0,0.007]
[1674068764309,0.14850001,20893.0,20892.0,0.007]
[1674068764495,0.62712901,20893.0,20892.0,0.007]
[1674068764745,1.10275801,20893.0,20890.0,0.01497574]
[1674068765038,1.18575801,20893.0,20892.0,0.001]
[1674068765276,1.10275801,20893.0,20890.0,0.01497574]
[1674068765541,0.62412901,20893.0,20890.0,0.01497574]
[1674068765787,0.62412901,20893.0,20890.0,0.15443674]